[Event "BL 2024-25"]
[Site "Austria"]
[Date "2024.10.11"]
[Round "3.35"]
[White "Balint, Peter"]
[Black "Pajeken, Jakob Leon"]
[Result "1-0"]
[Annotator "TA"]
[ECO "C65"]
[WhiteElo "2375"]
[BlackElo "2423"]
[PlyCount "91"]
[EventDate "2024.08.28"]
[EventType "team-tourn"]
[EventCountry "AUT"]
[SourceTitle "playchess.com"]
[Source "ChessBase"]
[SourceQuality "1"]
[WhiteTeam "Ottakring"]
[BlackTeam "Feffernitz"]
[TimeControl "40/5400+30:1800+30"]

{[%evp 12,91,23,3,24,8,16,1,10,20,19,14,22,11,37,-21,33,-12,-4,-21,-11,-12,0,-10,14,9,31,4,0,0,0,0,0,0,0,0,0,0,0,0,0,0,0,0,0,-33,0,0,354,360,512,474,510,500,662,681,956,920,840,879,873,891,948,945,949,944,931,572,923,879,29978,29979,29982,29983,29983,29984,29982,29985,29988,29989,29990,29991]} 1. e4 {[%emt 0:00:01]} e5 {[%emt 0:00:05]} 2. Nf3 {[%emt 0:00:04]} Nc6 {[%emt 0:00:04]} 3. Bb5 {[%emt 0:00:03]} Nf6 {[%emt 0:00:03]} 4. d3 {[%emt 0:00:28]} Bc5 {[%emt 0:00:08]} 5. c3 {[%emt 0:00:15]} O-O {[%emt 0:00:10]} 6. O-O {[%emt 0:01:37]} d6 {[%emt 0:00:20]} 7. h3 {[%emt 0:01:28]} a6 {[%emt 0:00:24]} 8. Ba4 {[%emt 0:00:50]} h6 {[%emt 0:01:05]} 9. Re1 {[%emt 0:03:38]} Ba7 {[%emt 0:01:01] The position is equal.} 10. Nbd2 {[%emt 0:00:40][%cal Bb1d2,Bd2f1,Bf1g3][%mdl 32]} Ne7 {[%emt 0:03:07]} 11. Nf1 {[%emt 0:03:41]} Ng6 {[%emt 0:00:30]} 12. Ng3 {[%emt 0:00:25]} d5 {[%emt 0:03:01]} 13. Qe2 {[%emt 0:23:36]} (13. exd5 $14 Nxd5 14. Bb3 (14. Nxe5 Nxe5 15. Rxe5 Bxf2+ 16. Kxf2 Qf6+ 17. Qf3 Qxe5 $17)) 13... Be6 {[%emt 0:14:06]} (13... c6 $11) 14. Be3 {[%emt 0:15:35]} c5 {[%emt 0:06:06]} 15. Bc2 {[%emt 0:14:20]} d4 {[%emt 0:04:15]} 16. cxd4 {[%emt 0:01:04]} cxd4 {[%emt 0:08:07]} 17. Bd2 {[%emt 0:01:12]} Rc8 {[%emt 0:01:19]} 18. Rec1 {[%emt 0:00:59]} Qd7 {[%emt 0:01:34]} 19. a4 {[%emt 0:03:06]} Rc7 {[%emt 0:04:01]} 20. a5 {[%emt 0:03:27]} Rfc8 {[%emt 0:01:27]} 21. Qd1 {[%emt 0:01:03]} Qd6 {[%emt 0:09:59]} 22. Bb3 {[%emt 0:04:47]} Rxc1 {[%emt 0:04:45]} 23. Rxc1 {[%emt 0:00:06]} Rxc1 {[%emt 0:01:23]} 24. Bxc1 {[%emt 0:00:04]} Qb4 {[%emt 0:00:50]} 25. Bxe6 {[%emt 0:02:52]} fxe6 {[%emt 0:00:03]} 26. Qc2 {[%emt 0:01:34] Dodges Bc5} Bc5 {[%emt 0:01:00]} 27. Bd2 {[%emt 0:01:44]} Qb5 {[%emt 0:00:11]} 28. h4 {[%emt 0:08:51][%cal Ob2b4]} Ng4 {[%emt 0:03:40]} (28... Bd6 {simplifies} 29. b4 Kf7 30. Qc4 Qxc4 31. dxc4 Ke7) 29. b4 $36 {[%emt 0:03:06][%mdl 2048] White is more active.} Bxb4 {[%emt 0:03:26][%mdl 8192] Black is on the road to losing.} (29... Be7 $11 {and Black stays safe.}) 30. Qb3 $1 $18 {[%emt 0:00:14][%csl LRb4,LRe6]} Bxd2 {[%emt 0:00:31]} ({Much worse is} 30... Bxa5 31. Qxe6+ Kh7 32. Bxa5 $18 (32. Qxg4 Bxd2 33. Qf5 Kg8 $18)) (30... Kf7 {keeps fighting.}) 31. Qxe6+ {[%emt 0:00:03]} Kh7 {[%emt 0:00:39]} 32. Qxg4 {[%emt 0:00:50]} Bf4 {[%emt 0:01:59][%cal Og6e7]} 33. Qf5 {[%emt 0:00:33]} Qb1+ {[%emt 0:14:33]} 34. Nf1 {[%emt 0:00:53] [#] Black must now prevent h5.} Kh8 {[%emt 0:01:11]} 35. Qxg6 {[%emt 0:00:06]} Qxd3 {[%emt 0:00:18]} 36. h5 {[%emt 0:01:08]} Qb5 {[%emt 0:02:02]} 37. Qf7 {[%emt 0:00:28] White threatens Nh4 and mate.} Qxa5 {[%emt 0:01:40]} 38. g3 {[%emt 0:00:57]} Bg5 {[%emt 0:00:28]} 39. Qe8+ {[%emt 0:00:04]} Kh7 {[%emt 0:00:19]} 40. Nxe5 {[%emt 0:00:04] [#] White wants to mate with Nf7.} Bf6 {[%emt 0:02:18]} 41. Nd7 {[%emt 0:31:54] White mates.} Qd8 {[%emt 0:31:29]} 42. Nxf6+ {[%emt 0:00:17]} Qxf6 {[%emt 0:00:06]} 43. e5 {[%emt 0:00:04][%cal Be4e5,Be5e6][%mdl 32]} Qc6 {[%emt 0:00:21]} 44. Qf7 {[%emt 0:00:06]} d3 {[%emt 0:02:29]} 45. e6 {[%emt 0:00:04]} d2 {[%emt 0:00:19]} 46. Nxd2 {[%emt 0:00:04] Weighted Error Value: White=0.08 (flawless) /Black=0.61.  Loses game:     	---       	Black=1      Mistake:       	White=1     	Black=2      Inaccurate:     	White=3     	Black=5      OK:         	White=11    	Black=6      Best:        	White=4     	---} 1-0

[Event "BL 2024-25"]
[Site "Austria"]
[Date "2024.10.11"]
[Round "3.36"]
[White "Brunello, Sabino"]
[Black "Huber, Benedikt"]
[Result "1-0"]
[Annotator "TA"]
[ECO "D36"]
[WhiteElo "2514"]
[BlackElo "2299"]
[PlyCount "91"]
[EventDate "2024.08.28"]
[EventType "team-tourn"]
[EventCountry "AUT"]
[SourceTitle "playchess.com"]
[Source "ChessBase"]
[SourceQuality "1"]
[WhiteTeam "Feffernitz"]
[BlackTeam "Ottakring"]
[TimeControl "40/5400+30:1800+30"]

{[%evp 16,91,23,18,29,25,33,36,33,27,39,24,25,20,29,20,35,10,32,12,20,26,47,46,33,44,131,0,0,-70,-64,-93,-72,-160,-91,-104,-112,-106,-99,-98,-100,-138,-105,-102,-70,-83,-16,-26,-4,-9,-19,0,0,0,19,0,0,0,8,10,908,920,29962,29963,29962,29963,29962,29964,29963,29964,5406,5397,29980,1248,29981,29981,29989,29989]} 1. c4 {[%emt 0:00:13]} e6 {[%emt 0:00:24]} 2. Nc3 {[%emt 0:01:09]} d5 {[%emt 0:00:34]} 3. d4 {[%emt 0:00:09]} Nf6 {[%emt 0:00:27]} 4. cxd5 {[%emt 0:00:07]} exd5 {[%emt 0:00:08]} 5. Bg5 {[%emt 0:00:09]} c6 {[%emt 0:00:27]} 6. e3 {[%emt 0:00:20]} h6 {[%emt 0:00:21]} 7. Bh4 {[%emt 0:00:10]} Be7 {[%emt 0:00:17]} 8. Bd3 {[%emt 0:00:13]} O-O {[%emt 0:00:28]} 9. Qc2 {[%emt 0:03:39]} Ne8 {[%emt 0:01:00]} 10. Bg3 {[%emt 0:03:08]} Nd6 {[%emt 0:00:09]} 11. Nge2 {[%emt 0:00:41]} Re8 {[%emt 0:09:17] White is slightly better.} 12. O-O {[%emt 0:00:20]} a5 {[%emt 0:01:07]} 13. Rae1 {[%emt 0:00:52]} Na6 {[%emt 0:03:09]} 14. a3 {[%emt 0:00:05] Wards off Nb4} b5 {[%emt 0:11:30]} 15. h3 {[%emt 0:01:31]} Bf8 {[%emt 0:10:16]} 16. Bf4 {[%emt 0:27:48]} Qb6 {[%emt 0:20:02]} 17. Ng3 {[%emt 0:14:15]} Nc4 {[%emt 0:15:52]} 18. Nh5 {[%emt 0:12:55]} Be6 {[%emt 0:07:07]} 19. Bxc4 {[%emt 0:21:29]} bxc4 {[%emt 0:00:30]} 20. Be5 {[%emt 0:00:21]} Qb7 {[%emt 0:06:56] [#]} (20... Qd8 $14) 21. Ne2 {[%emt 0:03:35] White is more active. A dynamic duo of knights.} (21. f4 $1 $16) 21... f6 $36 {[%emt 0:01:38][%mdl 2048] Black has good play.} 22. Bh2 {[%emt 0:02:08]} (22. Qg6 $1 $11 Kh8 23. Nxf6 gxf6 24. Bxf6+ (24. Qxf6+ Bg7 $11) 24... Bg7 25. f4 (25. Qxh6+ Kg8 $11)) 22... Bf7 {[%emt 0:00:48]} 23. Nef4 {[%emt 0:01:28]} Bd6 {[%emt 0:01:59]} 24. Re2 {[%emt 0:02:34]} ({White should try} 24. Qf5) 24... Nc7 {[%emt 0:01:27]} (24... Bxf4 $142 25. Nxf4 g5) 25. Ng6 {[%emt 0:01:57][%cal Bf4g6,Bg6h4,Bh4f5][%mdl 32]} Bxh2+ {[%emt 0:00:24]} 26. Kxh2 {[%emt 0:00:01]} Ne6 {[%emt 0:00:27][%cal Oe6d4] Hoping for ...Nxd4!} 27. Ng3 {[%emt 0:01:18]} Rab8 {[%emt 0:02:58]} 28. Nh4 {[%emt 0:00:51]} c5 {[%emt 0:01:17]} 29. Nhf5 {[%emt 0:01:02]} Qb3 {[%emt 0:00:45]} 30. Qd2 {[%emt 0:00:24]} a4 {[%emt 0:02:23]} ({Better is} 30... Qb6 $17) 31. Rd1 {[%emt 0:00:34][%cal Bf1d1,Bd1d3,Bd3g3][%mdl 32]} cxd4 {[%emt 0:00:31]} (31... Rbd8 {is interesting.} 32. dxc5 Nxc5 33. e4 Kh7) 32. Nxd4 {[%emt 0:00:21]} Nxd4 {[%emt 0:00:34]} 33. Qxd4 {[%emt 0:00:02]} c3 {[%emt 0:00:50]} 34. Rd3 {[%emt 0:01:07]} Rec8 {[%emt 0:00:01]} 35. bxc3 {[%emt 0:00:28]} Qxa3 {[%emt 0:00:07]} 36. e4 {[%emt 0:00:03]} dxe4 {[%emt 0:00:29]} 37. Nxe4 {[%emt 0:00:04]} Rc7 $2 {[%emt 0:01:45][%mdl 8192] [#] A mistake that costs the game.} ({But not} 37... Bc4 $6 38. Nxf6+ Kh8 (38... gxf6 39. Rg3+ Kh7 40. Qd7+) 39. Rdd2 $16) (37... Qe7 $11 38. Rg3 (38. Qxa4 Bc4 $11) 38... Kf8) 38. Nxf6+ $1 $18 {[%emt 0:00:28][%mdl 512]} gxf6 {[%emt 0:00:33]} (38... Kh8 39. Qd8+) 39. Rg3+ {[%emt 0:00:09]} Kh7 {[%emt 0:00:28] [#]} 40. Qe4+ $1 {[%emt 0:00:28]} Kh8 {[%emt 0:00:16]} 41. Qf4 $1 {[%emt 0:30:35][%csl LRc7,LRf6,LRh6][%cal Rf4h6]} Qf8 {[%emt 0:01:35]} 42. Qxf6+ {[%emt 0:00:00]} Kh7 {[%emt 0:00:06]} 43. Qf5+ {[%emt 0:00:00]} Bg6 {[%emt 0:00:09]} 44. Qxg6+ {[%emt 0:00:00]} Kh8 {[%emt 0:00:04]} 45. Re6 {[%emt 0:00:00]} Rh7 {[%emt 0:00:43]} 46. Qe4 {[%emt 0:00:00] Weighted Error Value: White=0.16 (very precise) /Black=0.48.  Loses game:     	---       	Black=1      Mistake:       	White=3     	Black=3      Inaccurate:     	White=2     	Black=2      OK:         	White=9     	Black=6      Brilliant:      	White=1     	---} 1-0